Cogmind - Beta 13 @@@ ROGUE MODE // 2024.04.02 @ 22:51:06 Player: Tanderae Result: Destroyed by G-34 Mercenary with Small Laser Performance ------------- Evolutions (0) 0 Regions Visited (1) 200 Robots Destroyed (8) 40 Value Destroyed (206) 206 Prototype IDs (0) 0 Alien Tech Used (0) 0 Bonus (0) 0 TOTAL SCORE: 446 Bonus ------- None Cogmind --------- Core Integrity 0/250 Matter 285/300 Energy 300/300 System Corruption 0% Temperature Cool (6) Movement Core (50) Location -10/Materials Parts ------- > --- POWER (1) -------- (None) > --- PROPULSION (2) --- (None) > --- UTILITY (2) ------ Large Battery > --- WEAPON (2) ------- (None) > --- INVENTORY (5) ---- Large Battery (200) Large Battery (200) Spread Laser Peak State ------------ > --- POWER ------------ Light Ion Engine > --- PROPULSION ------- Aluminum Leg Aluminum Leg > --- UTILITY ---------- Heat Sink Large Battery > --- WEAPON ----------- Spread Laser Spread Laser > --- INVENTORY -------- Large Battery Large Battery EM Pulse Gun Medium Laser [Rating: 9] Favorites ----------- Power Light Ion Engine Engine Light Ion Engine Propulsion Aluminum Leg Leg Aluminum Leg Utility Heat Sink Device Heat Sink Storage Large Battery Weapon Spread Laser Energy Gun Spread Laser Special Melee Weapon Datajack Build | -11 -10 ------- Run | Yrd Mat Slots Evolved . | . . Power . | . . Propulsion . | . . Utility . | . . Weapon . | . . Parts Attached 10 | 5 5 Power 1 | 1 . Engine 1 | 1 . Core . | . . Reactor . | . . Propulsion 2 | 2 . Treads . | . . Leg 2 | 2 . Wheel . | . . Hover . | . . Flight . | . . Utility 2 | . 2 Device 1 | . 1 Storage 1 | . 1 Processor . | . . Hackware . | . . Protection . | . . Artifact . | . . Weapon 5 | 2 3 Energy Gun 4 | 2 2 Energy Cannon . | . . Ballistic Gun . | . . Ballistic Cannon . | . . Launcher . | . . Special Weapon . | . . Impact Weapon . | . . Slashing Weapon . | . . Piercing Weapon . | . . Special Melee Weapon 1 | . 1 Unidentified Prototypes . | . . Parts Lost 6 | . 6 Power 1 | . 1 Propulsion 2 | . 2 Utility 1 | . 1 Weapon 2 | . 2 Highest Loss Streak 5 | . 5 To Critical Strikes . | . . Average Slot Usage (%) 83 | . 83 Engine 12 | . 12 Leg 27 | . 27 Device 10 | . 10 Storage 7 | . 7 Energy Gun 22 | . 22 Special Melee Weapon 1 | . 1 Naked Turns . | . . Heaviest Build 13 | 7 13 Greatest Support 20 | 20 20 Greatest Overweight (x) . | . . Average Overweight (x) . | . . Largest Inventory Capacity 5 | 5 5 Average Capacity 5 | 5 5 Most Carried 5 | 3 5 Average Carried 3 | 1 3 Final Capacity 5 | 5 5 Final Carried 3 | 2 3 Class Distribution -------------------- 100% | Mutant Dominant Class ---------------- Mutant | -10/Materials Resources | -11 -10 ----------- Run | Yrd Mat Matter Collected 250 | 250 . Remotely . | . . Salvage Created 168 | 42 126 Parts 13 | 2 11 Haulers Intercepted . | . . Recyclers Shooed . | . . Parts Field Recycled . | . . Retrieved Matter . | . . Parts Self-Destructed . | . . Prevented . | . . Kills | -11 -10 ------- Run | Yrd Mat Combat Hostiles Destroyed 7 | 1 6 Guns 6 | . 6 AOE 1 | 1 . Classes Destroyed 3 | 1 2 Watcher 1 | . 1 Swarmer 2 | . 2 Grunt 5 | 1 4 Best Kill Streak 6 | 1 6 Combat Bots Only 5 | 1 5 Max Kills in Single Turn 1 | 1 1 Gunslinging . | . . Exploded 1 | 1 . Melee . | . . Uniques/NPCs Destroyed . | . . Combat | -11 -10 -------- Run | Yrd Mat Hostile Shots Fired 94 | 7 87 Missed 26 | 1 25 Damage Taken 650 | 67 583 Core 251 | 12 239 Absorbed by Shields . | . . Core Remaining (%) 95 | 95 . Volleys Fired 24 | 5 19 Largest 2 | 2 1 Hottest 90 | 90 65 Shots Fired 29 | 10 19 Gun 29 | 10 19 Cannon . | . . Launcher . | . . Special . | . . Kinetic . | . . Thermal 24 | 5 19 Explosive . | . . Electromagnetic 5 | 5 . Robot Hit Streak 8 | 7 8 Robot Miss Streak 7 | 3 7 Penetration Max . | . . Secondary Targets . | . . Shots Hit Robots 26 | 7 19 Core Hits 29 | 3 26 Critical Kills . | . . Critical Parts Destroyed . | . . Critical Strikes . | . . Melee Attacks . | . . Impact . | . . Slashing . | . . Piercing . | . . Sneak Attacks . | . . Combat Hostiles . | . . Follow-up Attacks . | . . Damage Inflicted 408 | 129 279 Guns 343 | 74 269 Cannons . | . . Explosions 55 | 55 . Melee . | . . Ramming 10 | . 10 Kinetic . | . . Thermal 361 | 92 269 Explosive . | . . Electromagnetic 37 | 37 . Impact . | . . Slashing . | . . Piercing . | . . Highest Corruption . | . . Average Corruption . | . . Corruption Purged . | . . Corruption Blocked . | . . Overload Shots . | . . Overflow Damage . | . . Projectiles . | . . Explosions . | . . Melee . | . . Knockbacks . | . . Impact . | . . Kinetic . | . . Secondary . | . . Self-Inflicted Damage . | . . Shots . | . . Rammed . | . . Targets Rammed 1 | . 1 Kicked 1 | . 1 Crushed . | . . Highest Temperature 168 | 162 168 Average Temperature 72 | 79 68 Received Heat Transfer 222 | 36 186 Siege Activations . | . . Robots Corrupted . | . . Combat Hostiles . | . . Parts Fried . | . . Impact Corruptions . | . . Robots Melted . | . . Combat Hostiles . | . . Parts Melted 1 | . 1 Heat Transferred 556 | 211 345 Parts Sabotaged . | . . Parts Stolen . | . . Parts Stripped . | . . Power Chain Reactions 1 | 1 . Alert | -11 -10 ------- Run | Yrd Mat Peak Influence 185 | 20 185 Initial 13 | . 13 Average 34 | 3 42 Maximum Alert Level . | . . Low Security (%) 100 | 100 100 Level 1 . | . . Level 2 . | . . Level 3 . | . . Level 4 . | . . Level 5 . | . . High Security . | . . Max Security . | . . Squads Dispatched 2 | . 2 Investigation 1 | . 1 Extermination . | . . Reinforcement 1 | . 1 Assault . | . . Garrison . | . . Intercept . | . . Searches Triggered . | . . Construction Impeded . | . . Haulers Reinforced . | . . Active Scanning Responses . | . . Cargo Convoy Interrupts . | . . Stealth | -11 -10 --------- Run | Yrd Mat Distress Signals 2 | . 2 Communications Jammed . | . . Distress Signals . | . . Times Spotted 19 | 1 18 Peak Tracking Total 10 | 1 10 Tactical Retreats 3 | . 3 Traps | -11 -10 ------- Run | Yrd Mat Traps Triggered 1 | . 1 Indirectly . | . . Trap Hack Attempts . | . . Triggered . | . . Disarmed . | . . Reprogrammed . | . . Reused . | . . Traps Extracted . | . . Installed . | . . Triggered . | . . Machines | -11 -10 ---------- Run | Yrd Mat Machines Disabled . | . . Max in Single Turn . | . . Machines Repaired . | . . Machines Dismantled . | . . Machines Sabotaged . | . . Overloaded Fab Kills . | . . Hacking | -11 -10 --------- Run | Yrd Mat Machines Accessed 2 | . 2 Terminals 2 | . 2 Fabricators . | . . Repair Stations . | . . Recycling Units . | . . Scanalyzers . | . . Garrison Access . | . . Total Hacks 7 | . 7 Successful 5 | . 5 Failed 2 | . 2 Catastrophic . | . . Database Lockouts . | . . Manual . | . . Terminals 7 | . 7 Fabricators . | . . Repair Stations . | . . Recycling Units . | . . Scanalyzers . | . . Garrison Access . | . . Terminal Hacks 5 | . 5 Record 1 | . 1 Robot Analysis 1 | . 1 Alert Level 1 | . 1 Dispatch Records 1 | . 1 Investigation Status 1 | . 1 Fabricator Hacks . | . . Repair Station Hacks . | . . Recycling Unit Hacks . | . . Scanalyzer . | . . Garrison Access Hacks . | . . Unauthorized Hacks . | . . Terminals . | . . Fabricators . | . . Repair Stations . | . . Recycling Units . | . . Scanalyzers . | . . Garrison Access . | . . Data Cores Recovered . | . . Used . | . . Hacking Detections 2 | . 2 Full Trace Events 1 | . 1 Feedback Events . | . . Feedback Blocked . | . . Robot Schematics Acquired . | . . Robots Built . | . . Authchips . | . . Time . | . . Total Robot Build Rating . | . . Part Schematics Acquired . | . . Parts Built . | . . Authchips . | . . Time . | . . Total Part Build Rating . | . . Parts Repaired . | . . Time . | . . Parts Recycled . | . . Recycled Matter . | . . Retrieved Matter . | . . Retrieved Components . | . . Parts Scanalyzed . | . . Part Schematics Acquired . | . . Parts Damaged . | . . Bothacking | -11 -10 ------------ Run | Yrd Mat Used RIF Installer . | . . Robots Hacked . | . . Non-combat . | . . Combat . | . . Robot Hacks Applied . | . . Relay Couplers Released . | . . Fabnet Peak Effective % . | . . Robots Rewired . | . . Allies Hacked . | . . Hacks Repelled . | . . Allies | -11 -10 -------- Run | Yrd Mat Total Allies . | . . Largest Group . | . . Highest-Rated Group . | . . Highest-Rated Ally . | . . Total Orders . | . . Ally Attacks . | . . Total Damage . | . . Kills . | . . Allies Corrupted . | . . Allies Melted . | . . Intel | -11 -10 ------- Run | Yrd Mat Robot Analysis Total 1 | . 1 Derelict Logs Recovered . | . . Drone Launches . | . . Drone Recoveries . | . . Exploration | -11 -10 ------------- Run | Yrd Mat Turns Passed 552 | 117 435 Spaces Moved 357 | 82 275 Core 27 | 27 . Treads . | . . Legs 330 | 55 275 Wheels . | . . Hover . | . . Flight . | . . Fastest Speed 50 | 50 120 Average Speed 114 | 96 120 Slowest Speed 120 | 120 120 Overloaded Moves . | . . Propulsion Burnouts . | . . Robots Hopped . | . . Cave-ins Triggered . | . . Exploration Rate (%) 19 | 5 33 Regions Visited 1 Branch Regions . Pre-discovered Areas . | . . Known Exits Taken . | . . Unknown Exits Taken 1 | 1 . Scrap Searched . | . . Spaces Dug . | . . Terrain Destroyed . | . . Melee . | . . Projectile . | . . AOE . | . . Terrain Rammed . | . . Walls Destroyed . | . . Machines Disabled . | . . Actions | -11 -10 --------- Run | Yrd Mat Total 473 | 109 364 Wait 56 | 11 45 Move 356 | 81 275 Hop . | . . Pick Up 18 | 7 11 Fast Attach . | . . Attach 7 | 5 2 Detach . | . . Swap 3 | . 3 Drop 8 | . 8 Fire 24 | 5 19 Melee . | . . Ram . | . . Kick 1 | . 1 Crush . | . . Escape Stasis . | . . Rewire . | . . Trap . | . . Miscellaneous . | . . Route ------- -11/Scrapyard -10/Materials (discovered 2 exits: [*Mat] / [*Min]) History --------- Turn | Location | Event 2 | -11/Scrapyard | Met Revision 17 66 | -11/Scrapyard | Discovered new exit (range 8) 118 | -11/Scrapyard | Entered Materials 209 | -10/Materials | Discovered new exit (range 15) 322 | -10/Materials | Build established: Mutant 415 | -10/Materials | Discovered new exit (range 15) 525 | -10/Materials | Core integrity fell below 50% 543 | -10/Materials | Core integrity fell below 20% 553 | -10/Materials | Destroyed by G-34 Mercenary with Small Laser Last Messages --------------- K-01 Serf cleans the Pressure Siphon. Heat Sink melted. G-34 Mercenary destroyed. K-01 Serf collects debris. G-34 Mercenary destroyed. K-01 Serf collects debris. S-10 Pest destroyed. Heat Sink destroyed. K-01 Serf collects debris. Spread Laser destroyed. K-01 Serf collects debris. Aluminum Leg destroyed. K-01 Serf cleans the Pressure Siphon. R-06 Scavenger collects Aluminum Leg. K-01 Serf cleans the Pressure Siphon. R-06 Scavenger collects Visual Processing Unit. K-01 Serf collects debris. Aluminum Leg destroyed. K-01 Serf collects debris. K-01 Serf destroyed. Map ----- +----------------------------------------------------+ | ????????????????????????????# # # #? | | ?????????????????################+## + #? | | ?????????????? # #? | | ??????????????< # """ #? | | ???????????????????#########+####+##### """"" #? | | ????????????????????????# # T #?# """"" #? | | ????????????????????????# """ # #?# """"" #? | | ????????????????#???????# """ # """#?# """ #? | | ????????????????# ??????# """ #[ """#?#+#########? | | ????????????????# ?????# """ #[["""#?# #????????? | | ?????????#??#???#[ ?????# # #?# #????????? | | ????????? ! # ?? ????# # #?# #????????? | | ?????????? / ###+########+########## #????????? | | ????????????# #????????? | | ????????????# ######## #????????? | | ????????????# % #??????# ##???????? | | ??????????????###### ###+########### #???????? | | ???????????????????# # ## ######### | | ???????????????????# # """"" ## # # | | ???????????????????# # """""??# # # | | ???????????????????# # """""??# # # | | ???????????????????# # ?# # # | | ???????????????????# # ## # # | | ?????????????####### **############### # // # | | ?????????? =%%*=%* + # | | ????????????????# =g%%@############ # # | | ????????????????# """"!="#??######### # # | | ????????????"???# """" T#??#/ ]] [## # "T" # | | ??????????? "# """"s "#??#/ ]] [## # # | | ?????????? g#??# = ## ######### | | ?????????? < ######### ## #???? | | ?????????? ## + #???? | | ?????????????????#u # # # #???? | | ?????????????????# # # # #####???? | | ?????????????????+ ?# + # #???????? | | ?????????????????# ?# [ # # #???????? | | ?????????????????# ??# # # #???????? | | ?????????????????#???####### + #???????? | | ???????????????????????????# # #???????? | | ???????????????????????????# # #???????? | | ???????????????????????????# # ##+##???????? | | ???????????????????????????# # #???????????? | | ???????????????????????????# # #???????????? | | ???????????????????????????# # #???????????? | | ???????????????????????????######## +???????????? | | ??????????????????????????????????# #???????????? | | ??????????????????????????????????# ????????????? | | ??????????????????????????????????# ????????????? | | ??????????????????????????????????# ????????????? | | ??????????????????????????????????+ ????????????? | +----------------------------------------------------+ Best States ------------- Heat Dissipation 35 Energy Generation 10 Energy Capacity 325 Matter Stores 300 Matter Capacity 300 Sight Range 16 Terrain Scan Density 10 Evasion (%) 55 Item Schematics ----------------- None Robot Schematics ------------------ None Fabricated ------------ Nothing Alien Tech Used ----------------- None Achievements -------------- Storm Trooper Uninvited Guest Challenges ------------ None Game ------ Seed HypervelocityLaserLink Manual? 0 Play Time 00:13:22 Cumulative 0.3 hours Start 2024.04.02 @ 22:38:53 End 2024.04.02 @ 22:51:06 Sessions 1 Manual Loads 0 Difficulty Rogue Special Mode None Game No. 2 Rogue 2 Adventurer 0 Explorer 0 Win Type - Total 0 Types 0/0/0/0/0/0/0/0/0 Lore% 0 Gallery% 1 Achievement% 1 Wizard Run 0 Options --------- Layout 1 ASCII 0 Keyboard 0 Movement Numpad Keybinds 0 Fullscreen 1 Font 32/SmallcapsGlow Map View 50x35 Zoom Use 0% Tactical HUD 0 Map Filters NONE Filters NONE Steam 1 RUN: da6db996-aad3-4a51-85c5-c2267013126b